fUSD/lending_fUSD_20250227
["ID","MTS","AMOUNT","RATE_DAILY","PERIOD"]
[354755391,1740667848792,-1194.0,0.00020219,2]
[354755392,1740667848802,-1194.0,0.00020247,2]
[354755393,1740667848812,-1194.0,0.00020274,2]
[354755394,1740667848822,-170.42,0.00020292,2]
[354755395,1740667848832,-443.78867854,0.000203,2]
[354755396,1740667848841,-443.78867826,0.000203,2]
[354755397,1740667848852,-443.78867826,0.000203,2]
[354755398,1740667848861,-443.78867826,0.000203,2]
[354755399,1740667848871,-1194.0,0.00020301,2]
[354755400,1740667848881,-1194.0,0.00020329,2]
[354755401,1740667848891,-1194.0,0.00020356,2]
[354755402,1740667848900,-1194.0,0.00020384,2]
[354755403,1740667848910,-1194.0,0.00020411,2]
[354755404,1740667848922,-1194.0,0.00020438,2]
[354755405,1740667848931,-1194.0,0.00020466,2]
[354755406,1740667848941,-1194.0,0.00020493,2]
[354755407,1740667849030,-1203.25979385,0.00020521,2]
[354755408,1740667849042,-150.0,0.000207,2]
[354755409,1740667849052,-492.45,0.00020846,2]
[354755410,1740667849063,-1000.0,0.00020892,2]
[354755411,1740667849076,-500.0,0.00021,2]
[354755412,1740667849086,-250.0,0.00021,2]
[354755413,1740667849099,-255.97872863,0.000211,2]
[354755414,1740667849114,-250.0,0.00021248,2]
[354755415,1740667849123,-670.13,0.00021508,2]
[354755416,1740667849134,-443.78867826,0.00021521,2]
[354755417,1740667849143,-776.84,0.00021617,2]
[354755418,1740667849152,-440.71,0.00021617,2]
[354755419,1740667849161,-627.02,0.00021769,2]
[354755420,1740667849171,-350.0,0.00021796,2]
[354755421,1740667849180,-170.42,0.00021853,2]
[354755422,1740667849190,-186.0,0.00021918,2]
[354755423,1740667849199,-500.0,0.00021918,2]
[354755424,1740667849209,-500.0,0.00021945,2]
[354755425,1740667849219,-500.0,0.00021973,2]
[354755426,1740667849228,-2542.41797599,0.00022,7]
[354755427,1740667849238,-500.0,0.00022,2]
[354755428,1740667849247,-1319.94,0.00022008,2]
[354755429,1740667849257,-500.0,0.00022028,2]
[354755430,1740667849266,-500.0,0.00022055,2]
[354755431,1740667849277,-524.13465511,0.00022082,2]
[354755432,1740667849286,-503.70486093,0.00022252,2]
[354755433,1740667849295,-1000.0,0.00022252,2]
[354755434,1740667849305,-500.0,0.00022252,2]
[354755435,1740667849314,-267.21590202,0.00022252,2]
[354755436,1740667849324,-450.0,0.00022344,2]
[354755437,1740667849333,-2900.0,0.000225,15]
[354755438,1740667849343,-776.84,0.00022576,2]
[354755439,1740667849353,-776.84,0.00022576,2]
[354755440,1740667849362,-1553.68,0.00022576,2]
[354755441,1740667849372,-287.80377883,0.0002265,2]
[354755442,1740667849381,-500.0,0.00022711,2]
[354755443,1740667849391,-991.93343584,0.00022711,2]
[354755444,1740667849400,-500.0,0.00022711,2]
[354755445,1740667849410,-500.0,0.00022711,2]
[354755446,1740667849422,-500.0,0.00022711,2]
[354755447,1740667849431,-500.0,0.00022711,2]
[354755448,1740667849440,-500.0,0.00022711,2]
[354755449,1740667849449,-625.78029305,0.00022711,2]
[354755450,1740667849459,-500.0,0.00022711,2]
[354755451,1740667849468,-500.0,0.00022711,2]
[354755452,1740667849477,-727.13857629,0.00022711,2]
[354755453,1740667849487,-1000.0,0.00022792,2]
[354755454,1740667849496,-550.0,0.00022892,2]
[354755455,1740667849506,-492.45,0.00022931,2]
[354755456,1740667849515,-300.0,0.00023,2]
[354755457,1740667849524,-443.78867826,0.00023176,3]
[354755458,1740667849533,-170.42,0.00023414,2]
[354755459,1740667849542,-253.62452134,0.0002344,2]
[354755460,1740667849552,-1063.2461867,0.00023743,2]
[354755461,1740667849561,-627.02,0.00023748,2]
[354755462,1740667849572,-670.13,0.00023772,2]
[354755463,1740667849581,-2900.34678622,0.00023804,2]
[354755464,1740667849591,-176.46,0.00023836,2]
[354755465,1740667849600,-382.04769563,0.00024,6]
[354755466,1740667849610,-9757.03950969,0.00024,14]
[354755467,1740667849620,-1000.0,0.00024658,2]
[354755468,1740667849630,-595.0,0.0002467,30]
[354755469,1740667849639,-595.0,0.0002468,30]
[354755470,1740667849650,-595.0,0.0002469,30]
[354755471,1740667849659,-170.46,0.00024712,30]
[354755472,1740667849668,-350.0,0.00025,2]
[354755473,1740667849679,-319.0,0.000251,2]
[354755474,1740667849689,-2187.78690079,0.0002597,2]
[354755475,1740667849698,-670.13,0.00026036,2]
[354755476,1740667849708,-2029.0,0.00026565,2]
[354755477,1740667849718,-1414.347,0.00026565,2]
[354755478,1740667849727,-152.178,0.00026565,2]
[354755479,1740667849737,-1623.0,0.00026565,2]
[354755480,1740667849747,-570.0,0.00026565,2]
[354755481,1740667849756,-151.904,0.00026565,2]
[354755482,1740667849766,-639.0,0.00026565,2]
[354755483,1740667849775,-801.0,0.00026565,2]
[354755484,1740667849786,-963.372,0.00026565,2]
[354755485,1740667849796,-1435.855,0.00026565,2]
[354755486,1740667849810,-540.0,0.00026565,2]
[354755487,1740667849824,-1280.772,0.00026565,2]
[354755488,1740667849833,-4089.358,0.00026565,2]
[354755489,1740667849843,-257.433,0.00026565,2]
[354755490,1740667849853,-4010.128,0.00026565,2]
[354755491,1740667849863,-1018.861,0.00026565,2]
[354755492,1740667849872,-1253.657,0.00026565,2]
[354755493,1740667849883,-150.76,0.00026849,2]
[354755494,1740667849893,-174.41,0.00026849,2]
[354755495,1740667849902,-28306.25788575,0.00027,14]
[354755496,1740667849912,-400.0,0.00027,2]
[354755497,1740667849924,-157.28,0.00027397,2]
[354755498,1740667849933,-330.73472049,0.00028,60]
[354755499,1740667849943,-1063.2461867,0.00028165,2]
[354755500,1740667849952,-2900.34678622,0.00028256,2]
[354755501,1740667849961,-670.13,0.000283,2]
[354755502,1740667849971,-450.0,0.00029,2]
[354755503,1740667849980,-10497.88881124,0.00029119,3]
[354755504,1740667849990,-49122.54388603,0.00029119,2]
[354755505,1740667849999,-14713.59629702,0.00029119,3]
[354755506,1740667850009,-11004.46147,0.00029119,2]
[354755507,1740667850018,-1016.43388317,0.00029169,30]
[354755508,1740667850030,-2029.0,0.00029565,2]
[354755509,1740667850040,-281.208,0.00029565,2]
[354755510,1740667850050,-562.804,0.00029565,2]
[354755511,1740667850060,-150.0,0.00029565,2]
[354755512,1740667850069,-587.888,0.00029565,2]
[354755513,1740667850078,-785.0,0.00029565,2]
[354755514,1740667850088,-908.0,0.00029565,2]
[354755515,1740667850097,-540.0,0.00029565,2]
[354755516,1740667850176,-1268.0,0.00029565,2]
[354755517,1740667850187,-4035.0,0.00029565,2]
[354755518,1740667850197,-150.0,0.00029565,2]
[354755519,1740667850207,-3923.0,0.00029565,2]
[354755520,1740667850216,-1111.0,0.00029565,2]
[354755521,1740667850226,-70759.58157645,0.000299,2]
[354755522,1740667850235,-886.94,0.00030134,2]
[354755523,1740667850244,-287.80377883,0.000304,2]
[354755524,1740667850253,-670.13,0.00030564,2]
[354755525,1740667850263,-237.99,0.00030682,2]
[354755526,1740667850272,-150.0,0.00030682,2]
[354755527,1740667850281,-150.0,0.00030682,2]
[354755528,1740667850291,-361.4,0.00030682,2]
[354755529,1740667850300,-150.0,0.00030682,2]
[354755530,1740667850309,-500.0,0.00031,2]
[354755531,1740667850319,-500.0,0.00031,2]
[354755532,1740667850328,-186.0,0.0003105,2]
[354755533,1740667850338,-254.85,0.00031074,2]
[354755534,1740667850347,-679.12,0.00031784,2]
[354755535,1740667850356,-500.0,0.00032119,30]
[354755536,1740667850365,-500.0,0.00032119,30]
[354755537,1740667850375,-500.0,0.00032119,30]
[354755538,1740667850384,-500.0,0.00032119,30]
[354755539,1740667850394,-237.65740305,0.00032119,30]
[354755540,1740667850403,-500.0,0.00032119,30]
[354755541,1740667850412,-500.0,0.00032119,30]
[354755542,1740667850422,-500.0,0.00032119,30]
[354755543,1740667850431,-500.0,0.00032119,30]
[354755544,1740667850441,-500.0,0.00032119,30]
[354755545,1740667850450,-500.0,0.00032119,30]
[354755546,1740667850459,-500.0,0.00032119,30]
[354755547,1740667850468,-500.0,0.00032119,30]
[354755548,1740667850477,-500.0,0.00032119,30]
[354755549,1740667850486,-500.0,0.00032119,30]
[354755550,1740667850495,-502.02130249,0.00032271,5]
[354755551,1740667850504,-2029.0,0.00032565,2]
[354755552,1740667850513,-540.0,0.00032565,2]
[354755553,1740667850523,-1268.0,0.00032565,2]
[354755554,1740667850532,-150.0,0.00032565,2]
[354755555,1740667850541,-1111.0,0.00032565,2]
[354755556,1740667850550,-1063.2461867,0.00032586,2]
[354755557,1740667850560,-174.41,0.00032646,2]
[354755558,1740667850569,-196.48,0.00032688,2]
[354755559,1740667850578,-344.07,0.00032688,2]
[354755560,1740667850587,-2900.34678622,0.00032708,2]
[354755561,1740667850596,-670.13,0.00032828,2]
[354755562,1740667850606,-594.81493428,0.00032962,2]
[354755563,1740667850615,-550.0,0.00033,2]
[354755564,1740667850625,-1329.22472991,0.00033298,2]
[354755565,1740667850634,-150.0,0.0003351,2]
[354755566,1740667850643,-434.2,0.00033965,2]
[354755567,1740667850658,-776.84,0.00033965,2]
[354755568,1740667850676,-984.04,0.00033965,2]
[354755569,1740667850695,-903.96,0.00033965,2]
[354755570,1740667850715,-776.84,0.00033965,2]
[354755571,1740667850730,-440.71,0.00033965,2]
[354755572,1740667850746,-440.71,0.00033965,2]
[354755573,1740667850766,-776.84,0.00033965,2]
[354755574,1740667850784,-440.71,0.00033965,2]
[354755575,1740667850804,-776.84,0.00033965,2]
[354755576,1740667850822,-440.71,0.00033965,2]
[354755577,1740667850840,-776.84,0.00033965,2]
[354755578,1740667850854,-440.71,0.00033965,2]
[354755579,1740667850873,-776.84,0.00033965,2]
[354755580,1740667850885,-440.71,0.00033965,2]
[354755581,1740667850903,-776.84,0.00033965,2]
[354755582,1740667850916,-776.84,0.00033965,2]
[354755583,1740667850932,-438.54,0.00033965,2]
[354755584,1740667850948,-776.84,0.00033965,2]
[354755585,1740667850963,-658.27,0.00033965,2]
[354755586,1740667850980,-481.37008837,0.00034,2]
[354755587,1740667850995,-150.0,0.00034102,2]
[354755588,1740667851010,-439.68,0.00034102,2]
[354755589,1740667851025,-150.0,0.00034102,2]
[354755590,1740667851042,-439.68,0.00034102,2]
[354755591,1740667851058,-150.0,0.00034102,2]
[354755592,1740667851072,-439.68,0.00034102,2]
[354755593,1740667851089,-826.87,0.00034102,2]
[354755594,1740667851103,-150.0,0.00034102,2]
[354755595,1740667851121,-150.0,0.00034102,2]
[354755596,1740667851135,-150.0,0.00034102,2]
[354755597,1740667851150,-439.68,0.00034102,2]
[354755598,1740667851165,-439.68,0.00034102,2]
[354755599,1740667851184,-150.0,0.00034102,2]
[354755600,1740667851199,-150.0,0.00034102,2]
[354755601,1740667851215,-988.19,0.00034102,2]
[354755602,1740667851230,-688.2,0.00034102,2]
[354755603,1740667851246,-439.68,0.00034102,2]
[354755604,1740667851262,-150.0,0.00034102,2]
[354755605,1740667851277,-988.19,0.00034102,2]
[354755606,1740667851293,-337.98,0.00034102,2]
[354755607,1740667851309,-150.0,0.00034102,2]
[354755608,1740667851324,-988.19,0.00034102,2]
[354755609,1740667851338,-439.68,0.00034102,2]
[354755610,1740667851353,-988.19,0.00034102,2]
[354755611,1740667851369,-439.68,0.00034102,2]
[354755612,1740667851383,-988.19,0.00034102,2]
[354755613,1740667851398,-439.68,0.00034102,2]
[354755614,1740667851412,-1965.04,0.00034102,2]
[354755615,1740667851428,-439.68,0.00034102,2]
[354755616,1740667851443,-987.7,0.00034102,2]
[354755617,1740667851556,-439.68,0.00034102,2]
[354755618,1740667851566,-265.26230214,0.0003429,7]
[354755619,1740667851576,-150.0,0.00034548,10]
[354755620,1740667851586,-776.84,0.00034924,2]
[354755621,1740667851597,-776.84,0.00034924,2]
[354755622,1740667851606,-861.46,0.00034924,2]
[354755623,1740667851615,-776.84,0.00034924,2]
[354755624,1740667851625,-776.84,0.00034924,2]
[354755625,1740667851635,-776.84,0.00034924,2]
[354755626,1740667851644,-274.16,0.00034924,2]
[354755627,1740667851654,-770.68,0.00034924,2]
[354755628,1740667851664,-440.71,0.00034924,2]
[354755629,1740667851676,-440.71,0.00034924,2]
[354755630,1740667851686,-600.0,0.00035,2]
[354755631,1740667851695,-670.13,0.00035092,2]
[354755632,1740667851705,-150.76,0.00035321,2]
[354755633,1740667851715,-2029.0,0.00035565,2]
[354755634,1740667851725,-456.101,0.00035565,2]
[354755635,1740667851734,-150.0,0.00035565,2]
[354755636,1740667851744,-650.0,0.00037,2]
[354755637,1740667851753,-1063.2461867,0.00037008,2]
[354755638,1740667851762,-2900.34678622,0.0003716,2]
[354755639,1740667851772,-174.71037224,0.000372,103]
[354755640,1740667851781,-670.13,0.00037356,2]
[354755641,1740667851790,-150.0,0.00038104,2]
[354755642,1740667851800,-581.9825308,0.00038104,2]
[354755643,1740667851809,-287.80377883,0.0003815,2]
[354755644,1740667851818,-174.41,0.00038443,2]
[354755645,1740667851827,-878.595,0.00038525,52]
[354755646,1740667851837,-294.675,0.00038565,2]
[354755647,1740667851847,-456.94189566,0.00039,15]
[354755648,1740667851857,-700.0,0.00039,2]
[354755649,1740667851866,-670.13,0.0003962,2]
[354755650,1740667851876,-1002.0,0.0004,5]
[354755651,1740667851885,-186.0,0.00040183,2]
[354755652,1740667851894,-32449.43967505,0.00041,14]
[354755653,1740667851903,-1500.0,0.00041096,120]
[354755654,1740667851913,-157.28,0.00041096,2]
[354755655,1740667851925,-1063.2461867,0.00041429,15]
[354755656,1740667851934,-2900.34678622,0.00041612,15]
[354755657,1740667851944,-670.13,0.00041883,2]
[354755658,1740667851953,-150.76,0.00043793,2]
[354755659,1740667851963,-670.13,0.00044147,2]
[354755660,1740667851972,-174.41,0.00044239,2]
[354755661,1740667851982,-566.61896668,0.0004462,2]
[354755662,1740667851991,-150.0,0.00045,85]
[354755663,1740667852001,-151.0,0.00045,120]
[354755664,1740667852010,-151.0,0.00045,120]
[354755665,1740667852019,-1252.31,0.000453,9]
[354755666,1740667852032,-1904.84656186,0.000456,90]
[354755667,1740667852041,-1063.2461867,0.00045851,15]
[354755668,1740667852051,-287.80377883,0.000459,21]
[354755669,1740667852061,-150.0,0.00045958,120]
[354755670,1740667852072,-300.0,0.00045999,30]
[354755671,1740667852081,-666.0,0.00045999,30]
[354755672,1740667852090,-300.0,0.00045999,30]
[354755673,1740667852100,-666.0,0.00045999,30]
[354755674,1740667852110,-106098.81540015,0.00046,2]
[354755675,1740667852119,-2900.34678622,0.00046064,15]
[354755676,1740667852130,-670.13,0.00046411,2]
[354755677,1740667852139,-1000.0,0.000465,30]
[354755678,1740667852148,-1883.88025617,0.00046849,14]
[354755679,1740667852158,-151.0,0.00046877,120]
[354755680,1740667852167,-154.28,0.000469,42]
[354755681,1740667852180,-154.28,0.000469,42]
[354755682,1740667852190,-1189.0,0.00047,3]
[354755683,1740667852200,-217.0,0.00047,90]
[354755684,1740667852209,-150.05014539,0.00048,2]
[354755685,1740667852218,-206.03662712,0.00048,30]
[354755686,1740667852228,-1025.25981379,0.00048,120]
[354755687,1740667852237,-450.02936322,0.00048,30]
[354755688,1740667852248,-151.0,0.00048466,120]
[354755689,1740667852257,-670.13,0.00048675,2]
[354755690,1740667852267,-151.0,0.0004874,120]
[354755691,1740667852276,-2035.92614934,0.000488,120]
[354755692,1740667852286,-901.1923379,0.00049,4]
[354755693,1740667852295,-8656.05278085,0.00049,120]
[354755694,1740667852304,-153.1629,0.000491,7]
[354755695,1740667852313,-1000.0,0.00049315,120]
[354755696,1740667852323,-1901.88,0.00049315,120]
[354755697,1740667852332,-186.0,0.00049315,2]
[354755698,1740667852342,-1000.0,0.00049342,120]
[354755699,1740667852351,-170.46,0.00049342,120]
[354755700,1740667852361,-1000.0,0.00049369,120]
[354755701,1740667852370,-1000.0,0.00049397,120]
[354755702,1740667852379,-1000.0,0.00049424,120]
[354755703,1740667852389,-249.46037649,0.00049452,120]
[354755704,1740667852398,-1901.88,0.00049589,120]
[354755705,1740667852407,-1901.88,0.00049863,120]
[354755706,1740667852417,-1209.75,0.0004996,2]
[354755707,1740667852429,-299.99,0.0004996,120]
[354755708,1740667852438,-150.99,0.0004996,30]
[354755709,1740667852448,-5771.08,0.0004996,2]
[354755710,1740667852458,-999.999999,0.0005,120]
[354755711,1740667852467,-9155.0,0.0005,120]
[354755712,1740667852476,-43026.2307,0.0005,120]
[354755713,1740667852486,-500.0,0.0005,120]
[354755714,1740667852495,-550.23563935,0.0005,120]
[354755715,1740667852505,-3669.0,0.0005,14]
[354755716,1740667852515,-152.03,0.0005,120]
[354755717,1740667852524,-152.03,0.0005,120]
[354755718,1740667852534,-152.03,0.0005,120]
[354755719,1740667852543,-152.03,0.0005,120]
[354755720,1740667852552,-152.03,0.0005,120]
[354755721,1740667852562,-152.03,0.0005,120]
[354755722,1740667852571,-152.03,0.0005,120]
[354755723,1740667852580,-174.41,0.00050036,2]
[354755724,1740667852590,-1901.88,0.00050136,120]
[354755725,1740667852599,-1063.2461867,0.00050272,15]
[354755726,1740667852610,-159.894748,0.000504,90]
[354755727,1740667852619,-1901.88,0.0005041,120]
[354755728,1740667852700,-2900.34678622,0.00050516,15]
[354755729,1740667852710,-151.0,0.00050603,120]
[354755730,1740667852720,-1901.88,0.00050684,120]
[354755731,1740667852730,-670.13,0.00050939,2]
[354755732,1740667852740,-1901.88,0.00050958,120]
[354755733,1740667852749,-2114.39,0.00051,2]
[354755734,1740667852759,-154.28,0.000511,48]
[354755735,1740667852769,-154.28,0.000511,48]
[354755736,1740667852778,-154.28,0.000511,48]
[354755737,1740667852788,-154.28,0.000511,48]
[354755738,1740667852797,-1901.88,0.00051232,120]
[354755739,1740667852806,-1901.88,0.00051506,120]
[354755740,1740667852815,-1901.88,0.0005178,120]
[354755741,1740667852825,-151.0,0.00051918,120]
[354755742,1740667852834,-176.46,0.00051918,2]
[354755743,1740667852843,-1901.88,0.00052054,120]
[354755744,1740667852852,-1901.88,0.00052328,120]
[354755745,1740667852861,-151.0,0.00052466,120]
[354755746,1740667852870,-1901.88,0.00052602,120]
[354755747,1740667852879,-159.894748,0.00052608,120]
[354755748,1740667852889,-1901.88,0.00052876,120]
[354755749,1740667852899,-1500.0,0.00053,10]
[354755750,1740667852909,-1901.88,0.0005315,120]
[354755751,1740667852918,-670.13,0.00053203,2]
[354755752,1740667852928,-1901.88,0.00053424,120]
[354755753,1740667852938,-287.80377883,0.0005365,53]
[354755754,1740667852947,-1901.88,0.00053698,120]
[354755755,1740667852957,-229.09,0.000539,2]
[354755756,1740667852966,-1901.88,0.00053972,120]
[354755757,1740667852975,-1901.88,0.00054246,120]
[354755758,1740667852985,-151.0,0.00054329,120]
[354755759,1740667852994,-300.0,0.00054399,30]
[354755760,1740667853003,-666.0,0.00054399,30]
[354755761,1740667853011,-300.0,0.00054399,30]
[354755762,1740667853021,-500000.0,0.000544,30]
[354755763,1740667853032,-1901.88,0.0005452,120]
[354755764,1740667853043,-1063.2461867,0.00054694,15]
[354755765,1740667853052,-15823.18719581,0.00054789,120]
[354755766,1740667853061,-300.0,0.00054793,30]
[354755767,1740667853070,-300.0,0.00054793,30]
[354755768,1740667853081,-500.0,0.00054794,120]
[354755769,1740667853091,-501.64967004,0.00054794,2]
[354755770,1740667853101,-500.0,0.00054794,120]
[354755771,1740667853110,-500.0,0.00054794,120]
[354755772,1740667853122,-500.0,0.00054794,120]
[354755773,1740667853131,-500.0,0.00054794,16]
[354755774,1740667853140,-505.01,0.00054794,120]
[354755775,1740667853150,-500.0,0.00054794,120]
[354755776,1740667853159,-500.0,0.00054794,120]
[354755777,1740667853168,-500.0,0.00054794,120]
[354755778,1740667853179,-500.0,0.00054794,120]
[354755779,1740667853188,-500.0,0.00054794,120]
[354755780,1740667853198,-500.0,0.00054794,120]
[354755781,1740667853208,-500.0,0.00054794,120]
[354755782,1740667853217,-500.0,0.00054794,120]
[354755783,1740667853227,-500.0,0.00054794,120]
[354755784,1740667853237,-535.98941112,0.00054794,120]
[354755785,1740667853246,-500.0,0.00054794,120]
[354755786,1740667853255,-500.0,0.00054794,120]
[354755787,1740667853264,-500.0,0.00054794,120]
[354755788,1740667853274,-500.0,0.00054794,120]
[354755789,1740667853284,-500.0,0.00054794,120]
[354755790,1740667853293,-500.0,0.00054794,120]
[354755791,1740667853302,-500.0,0.00054794,120]
[354755792,1740667853311,-500.0,0.00054794,120]
[354755793,1740667853321,-507.7588775,0.00054794,120]
[354755794,1740667853330,-500.0,0.00054794,120]
[354755795,1740667853343,-500.0,0.00054794,120]
[354755796,1740667853353,-500.0,0.00054794,120]
[354755797,1740667853362,-500.0,0.00054794,120]
[354755798,1740667853372,-500.0,0.00054794,120]
[354755799,1740667853382,-500.0,0.00054794,120]
[354755800,1740667853391,-509.3306136,0.00054794,120]
[354755801,1740667853401,-500.0,0.00054794,120]
[354755802,1740667853410,-500.0,0.00054794,120]
[354755803,1740667853419,-500.0,0.00054794,120]
[354755804,1740667853431,-514.14754759,0.00054794,120]
[354755805,1740667853440,-500.0,0.00054794,120]
[354755806,1740667853450,-500.0,0.00054794,120]
[354755807,1740667853459,-500.0,0.00054794,120]
[354755808,1740667853472,-501.96207925,0.00054794,120]
[354755809,1740667853482,-567.63635349,0.00054794,120]
[354755810,1740667853492,-500.0,0.00054794,120]
[354755811,1740667853501,-500.0,0.00054794,120]
[354755812,1740667853511,-500.0,0.00054794,120]
[354755813,1740667853520,-500.0,0.00054794,120]
[354755814,1740667853529,-500.0,0.00054794,120]
[354755815,1740667853538,-506.71278006,0.00054794,120]
[354755816,1740667853548,-500.0,0.00054794,120]
[354755817,1740667853557,-500.0,0.00054794,120]
[354755818,1740667853567,-500.0,0.00054794,120]
[354755819,1740667853576,-500.0,0.00054794,120]
[354755820,1740667853585,-500.0,0.00054794,120]
[354755821,1740667853594,-500.0,0.00054794,120]
[354755822,1740667853604,-500.0,0.00054794,120]
[354755823,1740667853613,-500.0,0.00054794,120]
[354755824,1740667853623,-779.12,0.00054794,120]
[354755825,1740667853632,-500.0,0.00054794,120]
[354755826,1740667853642,-500.0,0.00054794,120]
[354755827,1740667853652,-500.0,0.00054794,120]
[354755828,1740667853661,-500.0,0.00054794,120]
[354755829,1740667853670,-500.0,0.00054794,120]
[354755830,1740667853682,-500.0,0.00054794,120]
[354755831,1740667853692,-500.0,0.00054794,120]
[354755832,1740667853701,-500.0,0.00054794,120]
[354755833,1740667853711,-500.0,0.00054794,120]
[354755834,1740667853720,-500.0,0.00054794,120]
[354755835,1740667853730,-500.0,0.00054794,120]
[354755836,1740667853739,-500.0,0.00054794,120]
[354755837,1740667853749,-500.0,0.00054794,120]
[354755838,1740667853759,-500.0,0.00054794,120]
[354755839,1740667853768,-554.5297629,0.00054794,120]
[354755840,1740667853778,-500.0,0.00054794,120]
[354755841,1740667853787,-500.0,0.00054794,120]
[354755842,1740667853797,-500.0,0.00054794,120]
[354755843,1740667853807,-500.0,0.00054794,120]
[354755844,1740667853817,-500.0,0.00054794,120]
[354755845,1740667853827,-500.0,0.00054794,120]
[354755846,1740667853836,-500.0,0.00054794,120]
[354755847,1740667853846,-500.0,0.00054794,120]
[354755848,1740667853856,-500.0,0.00054794,120]
[354755849,1740667853866,-500.0,0.00054794,120]
[354755850,1740667853876,-483.42016032,0.00054794,120]
[354755851,1740667853885,-500.0,0.00054794,120]
[354755852,1740667853895,-500.0,0.00054794,120]
[354755853,1740667853904,-500.0,0.00054794,120]
[354755854,1740667853913,-503.31840739,0.00054794,120]
[354755855,1740667853923,-512.00519649,0.00054794,120]
[354755856,1740667853933,-500.0,0.00054794,120]
[354755857,1740667853943,-500.0,0.00054794,120]
[354755858,1740667853952,-500.0,0.00054794,120]
[354755859,1740667853961,-500.0,0.00054794,120]
[354755860,1740667853971,-500.0,0.00054794,120]
[354755861,1740667853980,-500.0,0.00054794,120]
[354755862,1740667853990,-500.0,0.00054794,120]
[354755863,1740667853999,-500.0,0.00054794,120]
[354755864,1740667854009,-500.0,0.00054794,120]
[354755865,1740667854019,-500.0,0.00054794,120]
[354755866,1740667854030,-500.0,0.00054794,120]
[354755867,1740667854040,-500.0,0.00054794,30]
[354755868,1740667854049,-500.0,0.00054794,120]
[354755869,1740667854059,-500.0,0.00054794,120]
[354755870,1740667854068,-500.0,0.00054794,120]
[354755871,1740667854079,-500.0,0.00054794,120]
[354755872,1740667854089,-500.0,0.00054794,120]
[354755873,1740667854098,-500.0,0.00054794,120]
[354755874,1740667854108,-500.0,0.00054794,120]
[354755875,1740667854118,-500.0,0.00054794,120]
[354755876,1740667854128,-500.0,0.00054794,120]
[354755877,1740667854137,-500.0,0.00054794,120]
[354755878,1740667854147,-500.0,0.00054794,120]
[354755879,1740667854156,-500.0,0.00054794,60]
[354755880,1740667854166,-500.0,0.00054794,120]
[354755881,1740667854178,-500.0,0.00054794,120]
[354755882,1740667854188,-500.0,0.00054794,120]
[354755883,1740667854197,-500.0,0.00054794,120]
[354755884,1740667854207,-500.0,0.00054794,120]
[354755885,1740667854216,-500.0,0.00054794,120]
[354755886,1740667854227,-500.0,0.00054794,120]
[354755887,1740667854238,-500.0,0.00054794,120]
[354755888,1740667854247,-500.0,0.00054794,120]
[354755889,1740667854257,-500.0,0.00054794,120]
[354755890,1740667854267,-513.18952463,0.00054794,120]